bitfinex/quotes_SOLUSD_20240917
["timestamp","ask_amount","ask_price","bid_price","bid_amount"]
[1726600433237,0.5072613,132.94,132.91,15.26120012]
[1726600437523,0.5072613,132.94,132.92,15.26120012]
[1726600437724,0.5072613,132.94,132.93,15.26120012]
[1726600438131,0.5072613,132.94,132.92,15.26120012]
[1726600440660,0.5072613,132.94,132.89,20.0]
[1726600440949,0.5072613,132.94,132.89,35.26120012]
[1726600441152,2.38822534,132.94,132.89,35.26120012]
[1726600442251,0.5072613,132.94,132.89,35.26120012]
[1726600442437,30.5072613,132.94,132.89,35.26120012]
[1726600442751,24.54254864,132.93,132.86,15.26120012]
[1726600442954,9.53010773,132.92,132.85,15.26120012]
[1726600443131,9.53010773,132.92,132.82,22.8601]
[1726600443132,2.00680773,132.92,132.82,22.8601]
[1726600443438,37.5238,132.91,132.84,15.26120012]
[1726600443640,1.88161351,132.9,132.84,15.26120012]
[1726600443841,1.88161414,132.89,132.84,15.26120012]
[1726600444555,0.12549,132.9,132.84,15.26120012]
[1726600444754,30.0,132.91,132.85,15.26120012]
[1726600444953,30.0,132.91,132.88,15.26120012]
[1726600445452,1.88117147,132.92,132.88,15.26120012]
[1726600445635,15.1388,132.93,132.88,15.26120012]
[1726600446754,15.1388,132.93,132.82,22.8601]
[1726600446755,15.1388,132.93,132.89,15.26120012]
[1726600447127,0.5072613,132.94,132.92,15.26120012]
[1726600447327,0.5072613,132.94,132.84,20.0]
[1726600447328,30.0,132.93,132.84,20.0]
[1726600447555,1.88103476,132.92,132.89,15.26120012]
[1726600447739,30.0,132.93,132.89,15.26120012]
[1726600448134,2.38829606,132.94,132.89,15.26120012]
[1726600448952,0.5072613,132.94,132.9,15.26120012]
[1726600449142,0.5072613,132.94,132.92,15.26120012]
[1726600453073,0.5072613,132.94,132.91,15.26120012]
[1726600454666,0.5072613,132.94,132.92,15.26120012]
[1726600454875,0.5072613,132.94,132.93,15.26120012]
[1726600455777,0.5072613,132.94,132.92,15.26120012]
[1726600456467,0.5072613,132.94,132.93,40.54255523]
[1726600456776,0.5072613,132.94,132.93,39.03808412]
[1726600462086,0.5072613,132.94,132.93,15.26120012]
[1726600462652,0.5072613,132.94,132.93,39.03808412]
[1726600465557,0.5072613,132.94,132.93,15.26120012]
[1726600465756,0.5072613,132.94,132.93,60.66759609]
[1726600465978,0.5072613,132.94,132.93,59.16357412]
[1726600467583,0.5072613,132.94,132.93,59.03808412]
[1726600467962,0.5072613,132.94,132.93,23.776884]
[1726600468279,0.5072613,132.94,132.93,39.03808412]
[1726600481004,0.5072613,132.94,132.93,23.776884]
[1726600483293,0.5072613,132.94,132.92,23.776884]
[1726600483793,0.5072613,132.94,132.91,23.776884]
[1726600485909,0.5072613,132.94,132.92,15.26120012]
[1726600490109,0.5072613,132.94,132.93,15.26120012]
[1726600494107,0.5072613,132.94,132.93,39.03808412]
[1726600495204,0.5072613,132.94,132.93,23.776884]
[1726600495384,0.5072613,132.94,132.92,15.26120012]
[1726600495589,0.5072613,132.94,132.93,15.26120012]
[1726600496392,0.5072613,132.94,132.93,39.03808412]
[1726600500928,0.5072613,132.94,132.88,22.3573]
[1726600501086,0.5072613,132.94,132.92,15.26120012]
[1726600501288,0.5072613,132.94,132.93,15.26120012]
[1726600504118,0.5072613,132.94,132.93,39.03808412]
[1726600506891,0.2609655,132.97,132.96,15.26120012]
[1726600509000,0.2609655,132.97,132.95,15.26120012]
[1726600511301,0.2609655,132.97,132.96,15.26120012]
[1726600512826,0.2609655,132.97,132.96,39.03808412]
[1726600514507,0.2609655,132.97,132.94,20.0]
[1726600514724,0.2609655,132.97,132.96,15.26120012]
[1726600515505,0.2609655,132.97,132.93,16.3203]
[1726600515711,0.2609655,132.97,132.95,15.26120012]
[1726600515906,0.2609655,132.97,132.96,15.26120012]
[1726600517108,0.2609655,132.97,132.96,39.03808412]
[1726600519134,0.2609655,132.97,132.95,15.26120012]
[1726600519428,0.2609655,132.97,132.93,15.26120012]
[1726600519634,15.6195655,132.97,132.89,15.7418]
[1726600519813,1.88057029,132.96,132.94,15.26120012]
[1726600520010,17.50011812,132.97,132.94,15.26120012]
[1726600520330,15.6195655,132.97,132.93,15.26120012]
[1726600520539,1.88052907,132.96,132.92,15.26120012]
[1726600520716,1.88068397,132.95,132.9,15.26120012]
[1726600520906,1.88068397,132.95,132.89,15.26120012]
[1726600522129,15.6195655,132.97,132.92,15.26120012]
[1726600522715,15.6195655,132.97,132.93,15.26120012]
[1726600522915,15.6195655,132.97,132.87,24.027864]
[1726600522916,1.88062608,132.96,132.91,15.26120012]
[1726600523115,15.6195655,132.97,132.9,15.26120012]
[1726600523116,1.88072819,132.95,132.9,15.26120012]
[1726600523912,1.88072819,132.95,132.89,15.26120012]
[1726600524219,1.88072819,132.95,132.86,15.26120012]
[1726600524220,7.64809,132.94,132.86,15.26120012]
[1726600524552,1.88131059,132.93,132.86,15.26120012]
[1726600524729,1.88130931,132.92,132.87,15.26120012]
[1726600525437,0.12549,132.94,132.88,15.26120012]
[1726600525626,0.12549,132.94,132.89,15.26120012]
[1726600526628,7.64769,132.94,132.88,15.26120012]
[1726600526836,7.64769,132.94,132.87,15.26120012]
[1726600528934,7.5211,132.96,132.89,15.26120012]
[1726600529130,0.12549,132.94,132.88,15.26120012]
[1726600532144,16.5497,132.92,132.86,39.03808412]
[1726600532348,16.5497,132.92,132.87,15.26120012]
[1726600532536,1.88126371,132.91,132.87,15.26120012]
[1726600535459,16.5497,132.92,132.88,15.26120012]
[1726600535975,16.5497,132.92,132.89,15.26120012]
[1726600536123,16.5497,132.92,132.9,15.26120012]
[1726600537340,16.5497,132.92,132.88,15.26120012]
[1726600540446,16.5497,132.92,132.89,15.26120012]
[1726600544539,16.5497,132.92,132.88,15.26120012]
[1726600545359,0.12549,132.95,132.9,15.26120012]
[1726600545532,23.15701461,132.96,132.92,15.26120012]
[1726600545533,30.67811461,132.96,132.92,15.26120012]
[1726600545734,30.67811461,132.96,132.91,15.26120012]
[1726600546863,15.2804,132.96,132.92,15.26120012]
[1726600548238,1.88072096,132.95,132.91,15.26120012]
[1726600548447,1.88072096,132.95,132.9,15.26120012]
[1726600551859,15.2804,132.96,132.91,15.26120012]
[1726600553237,15.2804,132.96,132.92,15.26120012]
[1726600553857,0.2609655,132.97,132.94,15.26120012]
[1726600554057,0.2609655,132.97,132.95,15.26120012]
[1726600554865,0.2609655,132.97,132.96,15.26120012]
[1726600556261,0.2609655,132.97,132.96,39.03808412]
[1726600557258,15.6060613,133.02,132.96,39.03808412]
[1726600557259,15.6060613,133.02,132.97,23.776884]
[1726600557438,15.6060613,133.02,133.0,15.26120012]
[1726600557637,15.6060613,133.02,132.99,15.26120012]
[1726600558056,15.6060613,133.02,132.97,23.776884]
[1726600558057,15.6060613,133.02,133.0,15.26120012]
[1726600558364,0.5072613,133.02,133.0,15.26120012]
[1726600558845,0.5072613,133.02,132.99,15.26120012]
[1726600559241,0.5072613,133.02,133.0,15.26120012]
[1726600559866,0.5072613,133.02,132.99,15.26120012]
[1726600560165,0.5072613,133.02,132.97,47.5708764]
[1726600560343,0.5072613,133.02,132.96,23.776884]
[1726600561661,0.5072613,133.02,132.97,23.7939924]
[1726600561843,0.5072613,133.02,132.98,23.776884]
[1726600566557,0.5072613,133.02,132.94,20.12549]
[1726600566760,0.5072613,133.02,132.96,23.7939924]
[1726600566967,2.38705702,133.02,132.97,23.776884]
[1726600567263,9.90475702,133.02,132.94,23.7939924]
[1726600568367,0.12549,133.01,132.94,23.7939924]
[1726600568574,2.00564188,133.01,132.94,23.7939924]
[1726600568950,0.12549,133.01,132.94,23.7939924]
[1726600569279,0.5072613,133.02,132.96,23.7939924]
[1726600569572,0.5072613,133.02,132.97,1.50384452]
[1726600569771,0.5072613,133.02,132.96,23.7939924]
[1726600571051,0.5072613,133.02,132.97,1.50385147]
[1726600571256,0.5072613,133.02,132.96,23.7939924]
[1726600575062,0.5072613,133.02,132.97,23.776884]
[1726600575279,0.5072613,133.02,132.98,23.7939924]
[1726600576089,0.5072613,133.02,132.97,23.776884]
[1726600576482,0.5072613,133.02,132.96,23.7939924]
[1726600576777,2.38714014,133.02,132.94,67.6963664]
[1726600581373,0.5072613,133.02,132.96,23.7939924]
[1726600581569,0.5072613,133.02,132.98,23.7939924]
[1726600582077,0.5072613,133.02,133.0,15.22560719]
[1726600583876,0.5072613,133.02,133.01,40.50595457]
[1726600584084,0.2609655,133.06,133.02,23.776884]
[1726600584285,0.2609655,133.06,133.05,15.22560719]
[1726600584670,0.2609655,133.06,133.04,15.22560719]
[1726600585764,0.2609655,133.06,133.03,15.22560719]
[1726600588763,0.2609655,133.06,133.04,15.22560719]
[1726600590391,0.2609655,133.06,133.03,15.22560719]
[1726600590689,0.2609655,133.06,133.02,15.22560719]
[1726600590873,0.2609655,133.06,133.03,15.22560719]
[1726600591972,0.2609655,133.06,133.04,15.22560719]
[1726600592382,0.2609655,133.06,133.05,15.22560719]
[1726600593281,0.2609655,133.06,133.04,15.22560719]
[1726600595769,0.2609655,133.06,133.03,15.22560719]
[1726600596695,0.2609655,133.06,133.04,15.22560719]
[1726600600292,0.2609655,133.06,133.03,15.22560719]
[1726600600501,0.2609655,133.06,133.0,20.0]
[1726600600502,0.2609655,133.06,133.01,23.776884]
[1726600600805,0.2609655,133.06,133.01,39.00249119]
[1726600601171,0.2609655,133.06,133.02,15.22560719]
[1726600601492,2.14018378,133.06,133.01,39.00249119]
[1726600602274,0.2609655,133.06,133.02,15.22560719]
[1726600603389,0.2609655,133.06,133.03,15.22560719]
[1726600609391,0.2609655,133.06,133.02,15.22560719]
[1726600609705,7.5166,133.04,132.96,6.5752]
[1726600609995,1.87971248,133.03,132.97,15.22560719]
[1726600610375,1.87971248,133.03,132.98,15.22560719]
[1726600610571,15.5249,133.04,132.99,15.22560719]
[1726600611376,15.5249,133.04,133.0,15.22560719]
[1726600611795,15.5249,133.04,132.99,15.22560719]
[1726600612303,15.5249,133.04,133.0,15.22560719]
[1726600614302,1.87945087,133.03,132.99,15.22560719]
[1726600614597,1.87945087,133.03,132.98,15.22560719]
[1726600614896,9.39685087,133.03,132.97,15.22560719]
[1726600616299,0.12549,133.03,132.97,15.22560719]
[1726600616994,30.12549,133.03,132.97,15.22560719]
[1726600617197,32.00531996,133.03,132.97,15.22560719]
[1726600618001,39.52251996,133.03,132.97,15.22560719]
[1726600618186,7.5176,133.02,132.96,15.22560719]
[1726600618387,9.39815005,133.01,132.94,15.22560719]
[1726600618593,0.12549,133.0,132.94,15.22560719]
[1726600618799,1.88027285,132.99,132.94,15.22560719]
[1726600618988,1.8802749,132.98,132.93,15.22560719]
[1726600619802,15.9212,132.99,132.93,15.22560719]
[1726600620191,1.88039919,132.98,132.93,15.22560719]
[1726600620509,9.40039919,132.98,132.92,15.22560719]
[1726600620903,1.88039919,132.98,132.92,15.22560719]
[1726600624004,16.6122,132.94,132.91,0.2609655]
[1726600624993,1.88098159,132.93,132.91,0.2609655]
[1726600627600,16.6122,132.94,132.91,0.2609655]
[1726600629897,1.88097883,132.93,132.91,0.2609655]
[1726600630722,16.6122,132.94,132.91,0.2609655]
[1726600633601,1.88107778,132.93,132.91,0.2609655]
[1726600634026,1.88107154,132.92,132.91,0.2609655]
[1726600634532,2.00656154,132.92,132.91,0.2609655]
[1726600634694,9.52986154,132.92,132.91,0.2609655]
[1726600634897,63.30674554,132.92,132.91,0.2609655]
[1726600635119,63.30674554,132.92,132.87,0.2609655]
[1726600635120,0.12549,132.9,132.87,0.2609655]
[1726600635442,9.53170212,132.9,132.87,0.2609655]
[1726600636199,30.0,132.89,132.87,0.2609655]
[1726600636421,1.88173038,132.88,132.87,0.2609655]
[1726600637509,30.0,132.89,132.87,0.2609655]
[1726600638207,1.88173631,132.88,132.87,0.2609655]
[1726600639129,30.0,132.89,132.87,0.2609655]
[1726600639631,1.88173255,132.88,132.87,0.2609655]
[1726600639929,30.0,132.89,132.87,0.2609655]
[1726600640723,1.88157671,132.88,132.87,0.2609655]
[1726600641055,30.0,132.89,132.87,0.2609655]
[1726600642927,1.88157569,132.91,132.87,0.2609655]
[1726600645523,0.12549,132.9,132.87,0.2609655]
[1726600645720,2.00715019,132.9,132.87,0.2609655]
[1726600648929,9.15410064,132.93,132.87,0.2609655]
[1726600649237,7.84545371,132.93,132.89,15.22560719]
[1726600649535,22.76136501,132.95,132.92,15.22560719]
[1726600649714,30.0,132.93,132.91,15.22560719]
[1726600649915,1.88102702,132.92,132.88,15.22560719]
[1726600650112,1.88133579,132.91,132.87,37.49647269]
[1726600650332,1.88133579,132.91,132.87,0.2609655]
[1726600650530,7.5233,132.92,132.87,0.2609655]
[1726600650726,7.523,132.93,132.87,0.2609655]
[1726600650923,0.12549,132.92,132.87,0.2609655]
[1726600651122,0.12549,132.92,132.87,15.48657269]
[1726600652434,0.12549,132.92,132.87,0.2609655]
[1726600652435,9.5304184,132.92,132.87,0.2609655]
[1726600653426,30.0,132.9,132.87,0.2609655]
[1726600653622,1.88164304,132.89,132.87,0.2609655]
[1726600655414,30.0,132.88,132.87,0.2609655]
[1726600656020,30.12549,132.88,132.87,0.2609655]
[1726600657552,30.0,132.88,132.87,0.2609655]
[1726600658447,30.0,132.88,132.87,15.48657269]
[1726600658630,23.5701,132.93,132.87,15.48657269]
[1726600658820,23.5701,132.93,132.88,15.22560719]
[1726600660039,1.88149494,132.92,132.87,0.2609655]
[1726600660220,9.40519494,132.92,132.87,0.2609655]
[1726600660419,17.25162302,132.92,132.87,0.2609655]
[1726600660648,15.37012808,132.92,132.87,0.2609655]
[1726600661061,1.88168892,132.91,132.87,0.2609655]
[1726600661344,0.12549,132.9,132.87,0.2609655]
[1726600661731,2.00722684,132.9,132.87,0.2609655]
[1726600661914,0.12549,132.9,132.87,0.2609655]
[1726600662734,23.776884,132.91,132.87,0.2609655]
[1726600662946,0.12549,132.9,132.87,0.2609655]
[1726600663442,2.00722319,132.9,132.87,0.2609655]
[1726600663747,0.12549,132.9,132.87,0.2609655]
[1726600664543,1.88172937,132.9,132.87,0.2609655]
[1726600664745,1.88153797,132.89,132.87,0.2609655]
[1726600664920,2.00702796,132.91,132.87,0.2609655]
[1726600665543,9.53092796,132.91,132.87,0.2609655]
[1726600666636,0.12549,132.89,132.87,0.2609655]
[1726600666832,2.00743737,132.89,132.87,0.2609655]
[1726600667643,30.0,132.88,132.87,0.2609655]
[1726600668049,30.12549,132.88,132.87,0.2609655]
[1726600668939,30.0,132.88,132.87,0.2609655]
[1726600669828,30.0,132.88,132.87,24.1058773]
[1726600670162,7.84642808,132.92,132.87,24.1058773]
[1726600670565,7.84642808,132.92,132.88,16.1027]
[1726600670860,23.20877825,132.94,132.88,22.5081]
[1726600670861,21.89970829,132.94,132.88,22.5081]
[1726600676266,0.12549,132.93,132.88,22.5081]
[1726600676474,21.89970829,132.94,132.88,24.01310336]
[1726600677265,2.00659159,132.93,132.88,22.5081]
[1726600677566,1.88125775,132.92,132.88,22.5081]
[1726600678763,1.88125355,132.91,132.88,22.5081]
[1726600678941,2.00674406,132.93,132.88,22.5081]
[1726600679971,0.12549,132.93,132.88,22.5081]
[1726600680379,9.52987023,132.93,132.88,22.5081]
[1726600680683,9.52987023,132.93,132.87,0.2609655]
[1726600680684,7.5233,132.92,132.87,0.2609655]
[1726600680851,1.88128023,132.93,132.87,0.2609655]
[1726600680852,11.40715273,132.93,132.87,0.2609655]
[1726600681054,0.12549,132.92,132.87,0.2609655]
[1726600681786,2.00702956,132.92,132.87,0.2609655]
[1726600681944,0.12549,132.92,132.87,0.2609655]
[1726600682141,2.00692389,132.92,132.87,0.2609655]
[1726600683977,2.00692389,132.92,132.87,15.5158635]
[1726600684165,1.88143389,132.92,132.88,15.254898]
[1726600684371,7.84558683,132.93,132.9,15.254898]
[1726600684869,21.89970829,132.94,132.89,31.259998]
[1726600685071,1.88110945,132.92,132.89,16.0051]
[1726600685374,25.78396102,132.94,132.87,15.5158635]
[1726600685375,25.78396102,132.94,132.87,0.2609655]
[1726600685577,3.88425273,132.93,132.87,15.5158635]
[1726600685870,25.78396102,132.94,132.89,15.254898]
[1726600686097,27.6651415,132.94,132.87,24.09035316]
[1726600686876,23.776884,132.92,132.87,0.2609655]
[1726600687074,0.12549,132.91,132.87,0.2609655]
[1726600687253,7.5248,132.9,132.87,0.2609655]
[1726600687451,1.88177271,132.89,132.87,0.2609655]
[1726600688487,0.12549,132.88,132.87,0.2609655]
[1726600689279,37.65099,132.88,132.87,0.2609655]
[1726600689450,61.427874,132.88,132.87,0.2609655]
[1726600689656,53.902374,132.88,132.87,0.2609655]
[1726600689856,30.12549,132.88,132.87,0.2609655]
[1726600690173,32.00763788,132.88,132.87,0.2609655]
[1726600690676,55.78452188,132.88,132.87,0.2609655]
[1726600690883,63.31002188,132.88,132.87,0.2609655]
[1726600691375,64.61961317,132.88,132.87,0.2609655]
[1726600691548,62.73746529,132.88,132.87,0.2609655]
[1726600692179,64.61988642,132.88,132.87,0.2609655]
[1726600692753,62.73746529,132.88,132.87,0.2609655]
[1726600693861,30.12549,132.88,132.87,0.2609655]
[1726600694067,32.00764248,132.88,132.87,0.2609655]
[1726600695374,39.84980745,132.88,132.87,0.2609655]
[1726600695879,37.96765497,132.88,132.87,0.2609655]
[1726600696054,30.12549,132.88,132.87,0.2609655]
[1726600698063,32.00750055,132.88,132.87,0.2609655]
[1726600698259,63.30988455,132.88,132.87,0.2609655]
[1726600698979,55.78438455,132.88,132.87,0.2609655]
[1726600699276,63.30988455,132.88,132.87,0.2609655]
[1726600699486,55.78438455,132.88,132.87,0.2609655]
[1726600700979,30.12549,132.88,132.87,0.2609655]
[1726600701359,30.12549,132.88,132.85,0.155427]
[1726600701563,1.88215284,132.87,132.85,0.155427]
[1726600701759,30.0,132.86,132.85,0.155427]
[1726600702666,0.12549,132.88,132.85,0.155427]
[1726600702870,23.776884,132.89,132.85,0.155427]
[1726600703179,0.12549,132.88,132.85,0.155427]
[1726600704166,30.0,132.86,132.85,0.155427]
[1726600705872,0.12549,132.88,132.85,0.155427]
[1726600706073,0.12549,132.89,132.85,0.155427]
[1726600706559,2.00755218,132.89,132.85,0.155427]
[1726600716499,2.00749352,132.89,132.85,0.155427]
[1726600717290,30.12549,132.86,132.85,0.155427]
[1726600725672,30.0,132.86,132.85,0.155427]
[1726600726879,7.83974239,132.9,132.85,0.155427]
[1726600727080,5.22841451,132.93,132.85,15.42080355]
[1726600727286,5.22841451,132.93,132.85,0.155427]
[1726600727487,13.06739443,132.93,132.85,0.155427]
[1726600727682,13.06739443,132.93,132.85,15.42080355]
[1726600727874,13.06739443,132.93,132.86,15.26537655]
[1726600728071,13.06739443,132.93,132.88,15.26537655]
[1726600728072,7.83897992,132.93,132.88,15.26537655]
[1726600728298,30.0,132.89,132.88,15.26537655]
[1726600728807,25.81870216,132.94,132.87,15.26537655]
[1726600728808,29.73748145,132.94,132.87,15.26537655]
[1726600729306,1.88143039,132.93,132.85,15.42080355]
[1726600729500,2.00714939,132.92,132.85,15.42080355]
[1726600731305,0.12549,132.92,132.85,15.42080355]
[1726600731883,0.12549,132.92,132.87,15.26537655]
[1726600732089,56.3807964,132.94,132.88,15.26537655]
[1726600732297,29.73748145,132.94,132.88,15.26537655]
[1726600732981,21.89970829,132.94,132.88,15.26537655]
[1726600733787,23.78096428,132.94,132.88,15.26537655]
[1726600733982,21.89970829,132.94,132.89,36.44767655]
[1726600734184,21.89970829,132.94,132.91,15.26537655]
[1726600734484,21.89970829,132.94,132.9,15.26537655]
[1726600734687,11.75618043,132.96,132.91,15.26537655]
[1726600735197,1.88085867,132.95,132.91,15.26537655]
[1726600736208,1.88085849,132.94,132.91,15.26537655]
[1726600736390,0.12549,132.96,132.91,15.26537655]
[1726600736909,0.12549,132.96,132.9,15.26537655]
[1726600737087,2.00635096,132.96,132.89,21.1823]
[1726600739686,2.00635096,132.96,132.89,36.44767655]
[1726600740292,2.0066391,132.96,132.89,36.44767655]
[1726600740501,0.12549,132.96,132.9,15.26537655]
[1726600740897,0.2609655,132.97,132.92,15.26537655]
[1726600742589,0.12549,132.96,132.92,15.26537655]
[1726600743293,0.12549,132.96,132.91,15.26537655]
[1726600743803,2.00624077,132.96,132.89,21.1823]
[1726600744002,2.00624077,132.96,132.89,36.44767655]
[1726600744197,2.00624077,132.96,132.9,15.26537655]
[1726600747320,0.12549,132.96,132.9,15.26537655]
[1726600748003,0.12549,132.96,132.91,15.26537655]
[1726600748197,0.12549,132.96,132.92,15.26537655]
[1726600750901,2.14162856,132.97,132.89,36.44767655]
[1726600751132,0.12549,132.96,132.89,36.44767655]
[1726600751621,0.12549,132.96,132.89,21.1823]
[1726600751791,18.28505019,132.96,132.89,15.018]
[1726600751996,18.28505019,132.96,132.86,22.145]
[1726600752209,18.28505019,132.96,132.87,15.26537655]
[1726600752421,26.12204515,132.96,132.87,15.26537655]
[1726600752608,24.24098496,132.96,132.88,15.26537655]
[1726600753128,30.0,132.94,132.88,15.26537655]
[1726600753499,30.0,132.94,132.89,15.26537655]
[1726600753693,24.24098496,132.96,132.9,15.26537655]
[1726600753913,16.40399,132.96,132.9,15.26537655]
[1726600754507,16.40399,132.96,132.91,15.26537655]
[1726600754508,0.12549,132.96,132.91,15.26537655]
[1726600754707,1.88072333,132.96,132.91,15.26537655]
[1726600754902,1.88070456,132.95,132.91,15.26537655]
[1726600755097,2.14167158,132.97,132.91,15.26537655]
[1726600756103,2.14167158,132.97,132.88,23.82387921]
[1726600756505,0.12549,132.96,132.88,23.82387921]
[1726600762141,0.12549,132.96,132.87,23.776884]
[1726600762142,2.00639049,132.96,132.87,23.776884]
[1726600763432,2.00639049,132.96,132.86,45.96887921]
[1726600764103,8.22759049,132.96,132.86,45.96887921]
[1726600765612,15.8048,132.95,132.86,45.96887921]
[1726600765914,30.12549,132.93,132.86,45.96887921]
[1726600766114,1.88122524,132.92,132.86,45.96887921]
[1726600766416,30.0,132.93,132.87,23.776884]
[1726600766731,0.12549,132.94,132.88,23.82387921]
[1726600767609,2.00653256,132.94,132.88,23.82387921]
[1726600768220,2.00653256,132.94,132.86,45.96887921]
[1726600769410,2.00657208,132.94,132.86,45.96887921]
[1726600770238,0.12549,132.94,132.86,45.96887921]
[1726600770933,2.00656851,132.94,132.86,45.96887921]
[1726600771942,2.00656851,132.94,132.85,0.155427]
[1726600776126,0.12549,132.94,132.86,23.82387921]
[1726600776916,0.12549,132.94,132.87,1.50492334]
[1726600777433,23.64492256,132.95,132.85,23.932311]
[1726600777434,15.8048,132.95,132.88,23.82387921]
[1726600777811,17.68571555,132.95,132.88,23.82387921]
[1726600778015,17.68571555,132.95,132.89,15.24966246]
[1726600778747,15.8048,132.95,132.89,15.24966246]
[1726600780241,15.8048,132.95,132.91,15.24966246]
[1726600780415,15.8048,132.95,132.9,15.24966246]
[1726600780615,15.8048,132.95,132.89,15.24966246]
[1726600780944,17.68578431,132.95,132.89,15.24966246]
[1726600781238,15.8048,132.95,132.89,15.24966246]
[1726600781951,17.68578353,132.95,132.89,15.24966246]
[1726600782143,15.8048,132.95,132.89,15.24966246]
[1726600782320,19.72569705,132.95,132.89,15.24966246]
[1726600783336,13.8048,132.95,132.89,15.24966246]
[1726600784436,0.12549,132.94,132.87,15.24966246]
[1726600787237,0.12549,132.94,132.88,15.24966246]
[1726600789351,0.12549,132.94,132.86,15.24966246]
[1726600791937,30.0,132.91,132.86,15.24966246]
[1726600792139,1.88136742,132.9,132.86,15.24966246]
[1726600792949,0.12549,132.94,132.86,15.24966246]
[1726600793247,0.12549,132.94,132.87,15.24966246]
[1726600793451,4.04638705,132.94,132.87,15.24966246]
[1726600793623,1.88131185,132.93,132.87,15.24966246]
[1726600793823,1.88131185,132.92,132.87,15.24966246]
[1726600798961,1.88131185,132.92,132.86,15.24966246]
[1726600799251,1.88131185,132.92,132.87,15.24966246]
[1726600800150,1.88131185,132.92,132.86,15.24966246]
[1726600800364,1.88131185,132.92,132.85,15.40508946]
[1726600800365,0.12549,132.91,132.85,15.40508946]
[1726600800656,0.12549,132.91,132.86,15.24966246]
[1726600800850,1.8814451,132.93,132.86,15.24966246]
[1726600801161,0.12549,132.91,132.86,15.24966246]
[1726600802353,2.00693425,132.91,132.86,15.24966246]
[1726600805343,2.00693425,132.91,132.85,15.40508946]
[1726600807857,2.00693425,132.91,132.86,15.24966246]
[1726600810472,8.66343425,132.91,132.85,0.155427]
[1726600810632,0.12549,132.89,132.85,0.155427]
[1726600810833,2.00735635,132.89,132.85,0.155427]
[1726600811749,30.0,132.88,132.85,0.155427]
[1726600811966,1.8818927,132.87,132.85,0.155427]
[1726600813158,1.88193351,132.86,132.85,0.155427]
[1726600813361,19.12169705,132.9,132.85,0.155427]
[1726600813362,0.12549,132.89,132.85,0.155427]
[1726600813959,1.88177078,132.89,132.85,0.155427]
[1726600815264,0.12549,132.88,132.85,0.155427]
[1726600815455,2.00735304,132.88,132.85,0.155427]
[1726600815858,19.12169705,132.9,132.85,0.155427]
[1726600816052,0.12549,132.89,132.85,0.155427]
[1726600816360,2.00734687,132.89,132.85,0.155427]
[1726600821575,9.88314853,132.89,132.85,0.155427]
[1726600822350,30.0,132.86,132.85,0.155427]
[1726600826391,30.12549,132.86,132.85,0.155427]
[1726600826756,30.12549,132.86,132.83,0.2609655]
[1726600826757,76.543884,132.86,132.83,0.2609655]
[1726600826956,0.12549,132.84,132.83,0.2609655]
[1726600827864,30.12549,132.84,132.83,0.2609655]
[1726600828074,53.902374,132.84,132.83,0.2609655]
[1726600829294,30.12549,132.84,132.83,0.2609655]
[1726600830864,32.00805989,132.84,132.83,0.2609655]
[1726600831257,30.0,132.84,132.83,0.2609655]
[1726600832775,30.12549,132.84,132.83,0.2609655]
[1726600833465,30.0,132.84,132.83,0.2609655]
[1726600834679,32.33154119,132.86,132.83,0.2609655]
[1726600835785,32.33154119,132.86,132.85,15.24966246]
[1726600836090,15.5589,132.92,132.85,15.24966246]
[1726600836461,30.39789637,132.94,132.87,15.24966246]
[1726600836462,42.17656012,132.94,132.87,15.24966246]
[1726600836697,38.25566307,132.94,132.87,15.24966246]
[1726600837264,40.13694687,132.94,132.87,15.24966246]
[1726600837461,40.13694687,132.94,132.84,31.22406246]
[1726600837667,40.13694687,132.94,132.84,15.9744]
[1726600838288,38.25566307,132.94,132.84,31.22406246]
[1726600838585,38.25566307,132.94,132.86,15.24966246]
[1726600838765,38.25566307,132.94,132.87,15.24966246]
[1726600838969,30.39789637,132.94,132.87,15.24966246]
[1726600839678,30.39789637,132.94,132.86,15.24966246]
[1726600839880,32.27917306,132.94,132.87,15.24966246]
[1726600840188,0.12549,132.93,132.86,15.24966246]
[1726600840970,0.12549,132.93,132.85,59.02654646]
[1726600841172,0.12549,132.93,132.85,35.24966246]
[1726600841591,0.12549,132.93,132.85,20.0]
[1726600843000,0.12549,132.93,132.85,35.24966246]
[1726600843167,0.12549,132.93,132.86,15.24966246]
[1726600843373,0.12549,132.93,132.87,15.24966246]
[1726600843892,0.12549,132.93,132.86,39.02654646]
[1726600845386,0.12549,132.93,132.87,15.24966246]
[1726600845869,0.12549,132.93,132.86,23.776884]
[1726600845870,0.12549,132.93,132.86,39.02654646]
[1726600846869,0.12549,132.93,132.85,35.24966246]